bitfinex/quotes_BTCUSD_20220307
["timestamp","ask_amount","ask_price","bid_price","bid_amount"]
[1646681425412,0.083907,37780.0,37767.0,0.15]
[1646681425413,0.4,37779.0,37767.0,0.15]
[1646681425611,0.207967,37780.0,37768.0,0.3]
[1646681425612,0.407888,37777.0,37768.0,0.3]
[1646681425811,0.0486,37776.0,37767.0,0.13]
[1646681426010,0.0486,37775.0,37767.0,0.125]
[1646681426210,0.07489,37775.0,37774.0,0.31897435]
[1646681426412,0.0486,37775.0,37774.0,0.72686235]
[1646681426609,1.006476,37775.0,37770.0,0.001]
[1646681426811,0.407876,37774.0,37770.0,0.001]
[1646681427014,0.1,37774.0,37770.0,0.001]
[1646681427311,0.456476,37773.0,37770.0,0.001]
[1646681427511,0.3486,37772.0,37770.0,0.001]
[1646681427758,0.807876,37771.0,37770.0,0.001]
[1646681427951,0.582766,37771.0,37770.0,0.00055189]
[1646681428151,0.556476,37771.0,37770.0,0.00055189]
[1646681428352,0.4486,37771.0,37770.0,0.00055189]
[1646681428551,0.856476,37771.0,37770.0,0.00055189]
[1646681428752,0.656476,37771.0,37770.0,0.00055189]
[1646681428956,0.956476,37771.0,37770.0,0.00055189]
[1646681429151,0.556476,37771.0,37770.0,0.00055189]
[1646681429352,0.407876,37770.0,37760.0,0.001]
[1646681429554,0.11626,37768.0,37763.0,6.564e-05]
[1646681429756,0.09995476,37766.0,37763.0,6.564e-05]
[1646681430151,0.407876,37765.0,37763.0,6.564e-05]
[1646681430354,0.407876,37764.0,37762.0,0.17387208]
[1646681430553,0.407876,37764.0,37762.0,0.16387208]
[1646681430955,0.407876,37764.0,37760.0,0.001]
[1646681430956,0.20950906,37763.0,37760.0,0.001]
[1646681431155,0.407876,37762.0,37760.0,0.001]
[1646681431355,0.507876,37762.0,37760.0,0.001]
[1646681431603,0.09995476,37761.0,37760.0,0.001]
[1646681431805,0.19995476,37761.0,37760.0,0.001]
[1646681432002,0.09995476,37761.0,37760.0,0.21664964]
[1646681432201,0.51897288,37763.0,37760.0,0.21664964]
[1646681432401,0.41901812,37763.0,37760.0,0.21664964]
[1646681432703,0.407876,37762.0,37760.0,0.21664964]
[1646681432901,0.41901812,37763.0,37760.0,0.001]
[1646681433103,0.16284677,37761.0,37760.0,0.001]
[1646681433402,0.67072277,37761.0,37760.0,0.001]
[1646681433602,0.507876,37761.0,37760.0,0.001]
[1646681433807,0.51897288,37763.0,37760.0,0.16907958]
[1646681433808,0.17262827,37762.0,37760.0,0.16907958]
[1646681434206,0.41901812,37763.0,37760.0,0.16907958]
[1646681434403,0.002,37761.0,37760.0,0.16907958]
[1646681434605,0.09995476,37771.0,37761.0,2.059876]
[1646681434606,0.27258303,37771.0,37761.0,2.059876]
[1646681434810,0.1,37778.0,37761.0,2.059876]
[1646681434811,0.17262827,37773.0,37770.0,0.07444186]
[1646681435008,0.4,37781.0,37772.0,0.18678021]
[1646681435272,0.17262827,37783.0,37772.0,0.18678021]
[1646681435273,0.1,37780.0,37772.0,0.18678021]
[1646681435461,0.1,37780.0,37772.0,0.23678021]
[1646681435663,0.17262827,37783.0,37776.0,0.19624186]
[1646681436066,0.17262827,37785.0,37776.0,0.19624186]
[1646681436264,0.407876,37784.0,37779.0,0.20655229]
[1646681436465,0.05,37789.0,37779.0,0.20655229]
[1646681436466,0.001,37783.0,37780.0,0.24953903]
[1646681436667,0.001,37783.0,37781.0,0.407876]
[1646681437069,0.001,37783.0,37782.0,0.407876]
[1646681437268,0.001,37783.0,37782.0,1.2728532]
[1646681437468,0.001,37783.0,37782.0,0.9015]
[1646681437666,0.3,37797.0,37782.0,0.95908626]
[1646681437870,0.49995476,37806.0,37794.0,0.8029]
[1646681438069,0.49995476,37806.0,37790.0,0.8029]
[1646681438070,0.74995476,37806.0,37790.0,0.8029]
[1646681438264,0.74995476,37806.0,37790.0,0.05]
[1646681438265,0.45,37806.0,37790.0,0.05]
[1646681438467,0.407876,37805.0,37790.0,0.05]
[1646681438666,0.1,37802.0,37797.0,0.17425541]
[1646681438867,0.22341372,37804.0,37789.0,0.35369787]
[1646681439103,0.22341372,37804.0,37786.0,0.0486]
[1646681439104,0.19734216,37799.0,37786.0,0.0486]
[1646681439307,0.15,37797.0,37786.0,0.0486]
[1646681439507,0.35,37798.0,37786.0,0.0486]
[1646681439705,0.09995476,37796.0,37786.0,0.0486]
[1646681439904,0.05,37798.0,37791.0,0.20761128]
[1646681440104,0.3,37799.0,37786.0,0.27425809]
[1646681440305,0.3,37799.0,37788.0,0.05]
[1646681440508,0.3,37799.0,37784.0,0.00019821]
[1646681440509,0.13241153,37797.0,37784.0,0.00019821]
[1646681440704,0.807876,37796.0,37784.0,0.00019821]
[1646681440905,0.09995476,37792.0,37784.0,0.00019821]
[1646681441109,0.407876,37791.0,37777.0,0.86415607]
[1646681441407,0.3,37790.0,37781.0,0.97841225]
[1646681441608,0.19995476,37796.0,37791.0,0.18767219]
[1646681441808,0.604292,37806.0,37791.0,0.18767219]
[1646681441809,0.19995476,37800.0,37791.0,0.18767219]
[1646681442009,0.1,37800.0,37791.0,0.18767219]
[1646681442208,0.09995476,37802.0,37798.0,0.28211225]
[1646681442408,0.09995476,37807.0,37799.0,0.407876]
[1646681442607,0.3,37813.0,37799.0,0.407876]
[1646681442850,0.3,37813.0,37799.0,0.61521241]
[1646681443050,0.3,37813.0,37800.0,0.407876]
[1646681443251,0.09995476,37813.0,37802.0,0.407876]
[1646681443450,0.09995476,37813.0,37803.0,0.17153479]
[1646681443451,0.20817079,37811.0,37803.0,0.17153479]
[1646681443851,0.3899483,37811.0,37803.0,0.17153479]
[1646681444054,0.3899483,37811.0,37804.0,0.407876]
[1646681444258,0.16,37809.0,37798.0,0.28211225]
[1646681444450,0.01,37809.0,37799.0,0.407876]
[1646681444655,0.01,37809.0,37799.0,1.210776]
[1646681444851,0.16,37809.0,37798.0,0.05]
[1646681445053,0.3,37808.0,37798.0,0.05]
[1646681445261,0.4298002,37802.0,37796.0,0.00020104]
[1646681445462,0.407876,37800.0,37796.0,0.00020104]
[1646681445653,0.4298002,37802.0,37796.0,0.00020104]
[1646681445957,0.557876,37800.0,37790.0,0.05]
[1646681446153,0.16605511,37794.0,37786.0,0.17772837]
[1646681446352,0.16605511,37794.0,37790.0,0.00020107]
[1646681446804,0.407876,37793.0,37790.0,0.00020107]
[1646681447207,0.39995476,37797.0,37787.0,0.24617519]
[1646681447404,0.09995476,37797.0,37787.0,1.04907519]
[1646681447605,0.3,37797.0,37787.0,0.24617519]
[1646681447802,0.1,37798.0,37787.0,0.24617519]
[1646681448005,0.21555589,37799.0,37793.0,0.20411112]
[1646681448205,0.0234046,37792.0,37791.0,0.15524134]
[1646681448403,0.0234046,37792.0,37788.0,0.407876]
[1646681448605,0.0234046,37792.0,37789.0,0.407876]
[1646681449005,0.0234046,37792.0,37788.0,0.8529]
[1646681449608,0.0234046,37792.0,37789.0,0.17565876]
[1646681449811,0.0234046,37792.0,37791.0,0.1662374]
[1646681450009,0.0234046,37792.0,37791.0,0.2162374]
[1646681451151,0.0234046,37792.0,37791.0,0.05]
[1646681451551,0.0234046,37792.0,37790.0,0.407876]
[1646681451756,0.0234046,37792.0,37791.0,0.05]
[1646681452153,0.61192953,37792.0,37784.0,0.00020111]
[1646681452363,0.707876,37791.0,37786.0,0.005]
[1646681452551,0.3,37791.0,37770.0,0.35170045]
[1646681452751,0.3,37790.0,37771.0,0.456476]
[1646681452952,0.3,37790.0,37772.0,0.8029]
[1646681453153,0.17259091,37787.0,37782.0,0.407876]
[1646681453355,0.20405353,37792.0,37781.0,0.42520612]
[1646681453558,0.20405353,37792.0,37783.0,0.42520612]
[1646681453559,0.0234046,37792.0,37783.0,0.42520612]
[1646681453759,0.0234046,37792.0,37786.0,0.01456942]
[1646681454020,0.0234046,37792.0,37790.0,0.42520612]
[1646681454217,0.0234046,37792.0,37791.0,0.70238831]
[1646681454416,0.0234046,37792.0,37791.0,0.29451231]
[1646681454617,0.0234046,37792.0,37791.0,0.92693872]
[1646681454820,0.382383,37804.0,37791.0,0.92693872]
[1646681454821,0.1,37807.0,37793.0,0.407876]
[1646681455021,0.1,37807.0,37795.0,0.407876]
[1646681455220,0.1,37807.0,37795.0,0.457876]
[1646681455417,0.15,37806.0,37795.0,0.1]
[1646681455619,0.19610316,37805.0,37802.0,0.16337207]
[1646681455819,0.01,37809.0,37802.0,0.16337207]
[1646681456020,0.01,37809.0,37804.0,0.407876]
[1646681456417,0.01,37809.0,37803.0,0.407876]
[1646681456618,0.15,37807.0,37800.0,0.0486]
[1646681457020,0.066178,37805.0,37800.0,0.0486]
[1646681457218,0.407876,37804.0,37800.0,0.0486]
[1646681457418,0.15,37803.0,37800.0,0.0486]
[1646681457625,0.407876,37802.0,37800.0,0.0486]
[1646681458057,0.066186,37801.0,37800.0,0.0486]
[1646681458254,0.066186,37801.0,37794.0,0.00019904]
[1646681458554,0.19212557,37797.0,37794.0,0.04879904]
[1646681458756,0.19212557,37797.0,37795.0,0.407876]
[1646681459158,0.19212557,37797.0,37794.0,0.05]
[1646681459361,0.19212557,37797.0,37788.0,0.22496804]
[1646681459362,0.407876,37796.0,37788.0,0.22496804]
[1646681459561,0.19212557,37797.0,37788.0,0.00019907]
[1646681459562,0.15,37793.0,37788.0,0.00019907]
[1646681459762,0.45063009,37797.0,37788.0,0.00019907]
[1646681459763,0.407876,37792.0,37788.0,0.00019907]
[1646681459967,0.19212557,37797.0,37788.0,0.00019907]
[1646681459968,0.15,37791.0,37788.0,0.00019907]
[1646681460165,0.18132028,37789.0,37788.0,0.00019907]
[1646681460360,0.17683595,37790.0,37783.0,0.21904063]
[1646681460760,0.17683595,37790.0,37783.0,0.002]
[1646681461164,0.15,37789.0,37783.0,0.002]
[1646681461611,0.17683595,37790.0,37778.0,0.05]
[1646681461809,0.216203,37789.0,37779.0,0.24056858]
[1646681462007,0.216203,37789.0,37783.0,0.18767427]
[1646681462008,0.211203,37789.0,37783.0,0.18767427]
[1646681462208,0.27741,37789.0,37779.0,0.51371107]
[1646681462408,0.21036558,37784.0,37779.0,0.22314249]
[1646681462606,0.21036558,37784.0,37778.0,0.00019912]
[1646681462814,0.21036558,37784.0,37774.0,0.004]
[1646681463207,0.21729986,37781.0,37774.0,0.18657473]
[1646681463607,0.21729986,37781.0,37774.0,0.44239197]
[1646681464011,0.28351886,37781.0,37774.0,0.004]
[1646681464610,0.28351886,37781.0,37773.0,0.16068469]
[1646681464811,0.17069981,37778.0,37774.0,0.407876]
[1646681465010,0.13484499,37778.0,37774.0,0.20710145]
[1646681465251,0.13484499,37778.0,37774.0,0.407876]
[1646681465454,0.21729986,37781.0,37774.0,0.407876]
[1646681465653,0.21729986,37781.0,37775.0,0.407876]
[1646681465855,0.21729986,37781.0,37770.0,0.26241235]
[1646681465856,0.15,37777.0,37770.0,0.26241235]
[1646681466053,0.21729986,37781.0,37768.0,0.00019918]
[1646681466254,0.15,37779.0,37771.0,0.21841096]
[1646681466456,0.15,37782.0,37772.0,0.407876]
[1646681466653,0.1,37783.0,37772.0,0.407876]
[1646681466855,0.416207,37791.0,37782.0,0.407876]
[1646681467054,0.416207,37791.0,37781.0,0.20836037]
[1646681467055,0.5323,37792.0,37787.0,0.407876]
[1646681467252,0.24995476,37795.0,37786.0,0.27450969]
[1646681467453,0.21752314,37791.0,37786.0,0.27450969]
[1646681467651,0.15,37795.0,37786.0,0.27450969]
[1646681467853,0.30830985,37795.0,37788.0,0.17706872]
[1646681468056,0.11291327,37786.0,37784.0,0.8029]
[1646681468254,0.11291327,37786.0,37783.0,0.407876]
[1646681468654,0.11291327,37786.0,37783.0,1.210776]
[1646681468859,0.1,37795.0,37785.0,0.407876]
[1646681469115,0.09995476,37800.0,37785.0,0.407876]
[1646681469116,0.09995476,37800.0,37794.0,0.407876]
[1646681469315,0.15,37803.0,37790.0,0.0486]
[1646681469512,0.407876,37805.0,37790.0,0.0486]
[1646681469815,0.15,37801.0,37791.0,0.3]
[1646681470016,0.216185,37801.0,37791.0,0.3]
[1646681470213,0.16965086,37800.0,37793.0,0.16640377]
[1646681470413,0.16965086,37800.0,37791.0,0.9529]
[1646681470414,0.16965086,37800.0,37791.0,0.45]
[1646681470811,0.18977306,37798.0,37791.0,0.15]
[1646681471415,0.18977306,37798.0,37792.0,0.17720913]
[1646681471814,0.18977306,37798.0,37792.0,0.1]
[1646681472766,0.18977306,37798.0,37791.0,0.3263536]
[1646681472966,0.18977306,37798.0,37791.0,0.1763536]
[1646681473172,0.18977306,37798.0,37792.0,0.1]
[1646681473367,0.16965086,37800.0,37792.0,0.1]
[1646681473567,0.15,37804.0,37794.0,0.8029]
[1646681473770,0.15,37804.0,37797.0,0.407876]
[1646681474167,0.09995476,37807.0,37795.0,0.3]
[1646681474369,0.09995476,37807.0,37799.0,0.21871451]
[1646681474573,0.15,37808.0,37805.0,0.407876]
[1646681474770,0.15,37808.0,37802.0,0.3]
[1646681474968,0.15,37807.0,37800.0,0.0486]
[1646681475170,0.01,37809.0,37794.0,0.1]
[1646681475171,0.407876,37806.0,37794.0,0.1]
[1646681475374,0.15,37801.0,37794.0,0.05]
[1646681475570,0.15,37801.0,37795.0,0.00016848]
[1646681475774,0.15,37801.0,37796.0,0.21730578]
[1646681475971,0.18548225,37800.0,37795.0,0.00016848]
[1646681476171,0.18548225,37800.0,37794.0,0.25675361]
[1646681476515,0.15,37801.0,37798.0,0.00476648]
[1646681476910,0.58284936,37800.0,37798.0,0.00476648]
[1646681477113,0.17497336,37800.0,37798.0,0.00476648]
[1646681477311,0.557876,37799.0,37798.0,0.00476648]
[1646681477911,0.73384336,37799.0,37798.0,0.00476648]
[1646681478315,0.80003836,37799.0,37798.0,0.00476648]
[1646681478511,0.80503836,37799.0,37798.0,0.00476648]
[1646681479111,0.93128312,37799.0,37798.0,0.00476648]
[1646681479312,0.90499312,37799.0,37798.0,0.00229452]
[1646681479813,0.89999312,37799.0,37798.0,0.00229452]
[1646681480011,0.49211712,37799.0,37798.0,0.00229452]
[1646681480253,0.94211712,37799.0,37798.0,0.00229452]
[1646681480654,0.80503836,37799.0,37798.0,0.00229452]
[1646681480859,1.35499312,37799.0,37798.0,0.00229452]
[1646681481151,0.90499312,37799.0,37798.0,0.00229452]
[1646681481351,1.35499312,37799.0,37798.0,0.00229452]
[1646681481750,1.61416219,37799.0,37798.0,0.00229452]
[1646681481954,1.34499312,37799.0,37798.0,0.00229452]
[1646681482150,1.60918828,37799.0,37798.0,0.00229452]
[1646681482551,1.50099312,37799.0,37798.0,0.00229452]
[1646681482750,1.6652486,37799.0,37798.0,0.00229452]
[1646681482949,1.50099312,37799.0,37798.0,0.00229452]
[1646681483351,1.09311712,37799.0,37798.0,0.00229452]
[1646681483560,1.50099312,37799.0,37798.0,0.00229452]
[1646681484814,1.49528518,37799.0,37798.0,0.00229452]
[1646681485013,1.91235574,37799.0,37798.0,0.00229452]
[1646681485413,1.81245574,37799.0,37798.0,0.00229452]
[1646681485620,2.01913524,37799.0,37798.0,0.00229452]
[1646681485816,0.09249365,37797.0,37794.0,0.00177964]
[1646681486015,0.67184218,37795.0,37794.0,0.00177964]
[1646681486218,1.072089,37795.0,37794.0,0.00177964]
[1646681486413,1.172089,37795.0,37794.0,0.00177964]
[1646681486615,1.767089,37795.0,37794.0,0.00177964]
[1646681487113,1.667089,37795.0,37794.0,0.00177964]
[1646681487513,1.40312282,37795.0,37794.0,0.00177964]
[1646681487766,1.899498,37795.0,37794.0,0.00177964]
[1646681487965,1.999498,37795.0,37787.0,0.00197103]
[1646681488266,0.15,37788.0,37787.0,0.00110348]
[1646681488467,0.829166,37788.0,37787.0,0.00130256]
[1646681488665,1.22912076,37788.0,37787.0,0.00130256]
[1646681488869,1.32912076,37788.0,37787.0,0.00130256]
[1646681489268,1.59222871,37788.0,37787.0,0.00130256]
[1646681489466,1.59222871,37788.0,37787.0,0.00110348]
[1646681490066,1.69212871,37788.0,37787.0,0.00110348]
[1646681490266,1.59222871,37788.0,37787.0,0.00110348]
[1646681490467,1.74212871,37788.0,37787.0,0.00110348]
[1646681491508,1.64222871,37788.0,37787.0,0.00110348]
[1646681491909,0.62006182,37793.0,37787.0,0.00110348]
[1646681491910,0.2004,37796.0,37788.0,1.65]
[1646681492112,0.36984646,37798.0,37789.0,0.83769047]
[1646681492308,0.31704289,37800.0,37791.0,1.22276649]
[1646681492511,0.31704289,37804.0,37796.0,1.22276649]
[1646681492708,0.01,37809.0,37798.0,0.8029]
[1646681492910,0.01,37809.0,37808.0,0.61941222]
[1646681493307,0.01,37809.0,37808.0,0.457775]
[1646681494609,0.01,37809.0,37808.0,0.05]
[1646681494909,0.20963758,37809.0,37807.0,0.066161]
[1646681495108,0.20963758,37809.0,37806.0,0.05]
[1646681495359,0.20963758,37809.0,37803.0,0.0486]
[1646681495559,0.20963758,37809.0,37803.0,0.0986]
[1646681495760,0.20963758,37809.0,37803.0,0.0486]
[1646681495960,0.20963758,37809.0,37804.0,0.3]
[1646681496159,0.20963758,37809.0,37803.0,0.0486]
[1646681496359,0.01,37809.0,37803.0,0.0986]
[1646681496761,0.01,37809.0,37803.0,0.23093]
[1646681496962,0.01,37809.0,37804.0,0.3]
[1646681497662,0.01,37809.0,37804.0,0.3486]
[1646681498062,0.02,37807.0,37804.0,0.3486]
[1646681499108,0.02,37807.0,37804.0,0.0486]
[1646681499303,0.02,37807.0,37804.0,0.3486]
[1646681499503,0.02,37807.0,37804.0,0.0486]
[1646681503359,0.02,37807.0,37804.0,0.3486]
[1646681503955,0.02,37807.0,37804.0,0.57699114]
[1646681504156,0.02629,37818.0,37808.0,0.066162]
[1646681504361,0.02629,37816.0,37806.0,0.3]
[1646681505157,0.20612562,37814.0,37806.0,0.3]
[1646681505359,0.00134928,37809.0,37806.0,0.3]
[1646681505562,0.00134928,37809.0,37805.0,0.35]
[1646681505761,0.00134928,37809.0,37806.0,0.540097]
[1646681506064,0.00134928,37809.0,37806.0,0.132322]
[1646681506260,0.00134928,37809.0,37806.0,0.066163]
[1646681506511,0.00134928,37809.0,37806.0,0.366163]
[1646681506706,0.00134928,37809.0,37806.0,0.35]
[1646681507209,0.00134928,37809.0,37806.0,0.05]
[1646681507607,0.00134928,37809.0,37804.0,0.62699114]
[1646681508212,0.00134928,37809.0,37807.0,0.407775]
[1646681508410,0.00134928,37809.0,37808.0,0.3]
[1646681508611,0.00134928,37809.0,37808.0,0.707775]
[1646681508811,0.18230343,37820.0,37809.0,0.00269856]
[1646681509012,0.1,37823.0,37810.0,0.407775]
[1646681509213,0.1,37823.0,37812.0,0.86904075]
[1646681509416,0.1,37826.0,37813.0,0.756375]
[1646681509610,0.1,37826.0,37813.0,0.856375]
[1646681509811,0.1,37826.0,37817.0,0.2307332]
[1646681510011,0.1909,37831.0,37817.0,0.3293332]
[1646681510012,0.16568707,37824.0,37817.0,0.3293332]
[1646681510265,0.16568707,37824.0,37817.0,0.0986]
[1646681510469,0.407775,37823.0,37817.0,0.0986]
[1646681510666,0.407775,37823.0,37817.0,0.0486]
[1646681510870,0.457775,37823.0,37812.0,0.003]
[1646681511168,0.00150333,37814.0,37812.0,0.003]
[1646681512366,0.00150333,37814.0,37811.0,0.26571291]
[1646681512568,0.00150333,37814.0,37811.0,0.31571291]
[1646681513369,0.00150333,37814.0,37813.0,0.407775]
[1646681513568,0.00150333,37814.0,37813.0,0.3]
[1646681513767,0.00150333,37814.0,37813.0,0.4]
[1646681514220,0.407775,37826.0,37821.0,0.27323742]
[1646681514621,0.1655475,37827.0,37821.0,0.27323742]
[1646681515218,0.1918375,37827.0,37816.0,0.3]
[1646681515418,0.1918375,37827.0,37816.0,0.05]
[1646681515617,0.1918375,37827.0,37815.0,0.407775]
[1646681515618,0.2418375,37827.0,37815.0,0.407775]
[1646681515819,0.2418375,37827.0,37815.0,0.05]
[1646681516221,0.2418375,37827.0,37816.0,0.28636536]
[1646681516420,0.2155475,37827.0,37816.0,0.28636536]
[1646681516620,0.2155475,37827.0,37816.0,0.33636536]
[1646681517225,0.19500765,37822.0,37816.0,0.33636536]
[1646681517421,0.19500765,37822.0,37817.0,0.407775]
[1646681517860,0.2155475,37827.0,37817.0,0.407775]
[1646681518058,0.2155475,37827.0,37818.0,0.3]
[1646681518257,0.2155475,37827.0,37818.0,0.05]
[1646681518458,0.2418375,37827.0,37816.0,0.33636536]
[1646681518658,0.3013715,37827.0,37816.0,0.05]
[1646681518960,0.3013715,37827.0,37813.0,0.05]
[1646681518961,0.21070796,37821.0,37813.0,0.05]
[1646681519158,0.17897305,37820.0,37810.0,0.0632]
[1646681519360,0.17897305,37820.0,37810.0,0.0132]
[1646681519765,0.059547,37819.0,37809.0,0.00269856]
[1646681519961,0.19160702,37815.0,37809.0,0.00269856]
[1646681520363,0.16924066,37814.0,37809.0,0.00269856]
[1646681520563,0.19160702,37815.0,37809.0,0.00269856]
[1646681521361,0.059546,37819.0,37809.0,0.00269856]
[1646681521608,0.07629,37821.0,37809.0,0.00269856]
[1646681521809,0.02629,37821.0,37809.0,0.00269856]
[1646681522008,0.1,37823.0,37809.0,0.00269856]
[1646681522009,0.02629,37823.0,37809.0,0.00269856]
[1646681522209,0.05,37822.0,37809.0,0.00269856]
[1646681522411,0.407775,37821.0,37818.0,0.00253803]
[1646681522608,0.62996796,37821.0,37818.0,0.00253803]
[1646681522810,1.00625796,37821.0,37818.0,0.00253803]
[1646681523015,0.02629,37817.0,37809.0,0.00269856]
[1646681523209,0.02629,37813.0,37809.0,0.00269856]
[1646681523409,0.214558,37810.0,37809.0,0.00269856]
[1646681523809,0.70027511,37810.0,37809.0,0.00269856]
[1646681524011,1.05983511,37810.0,37809.0,0.00269856]
[1646681524209,1.26148511,37810.0,37809.0,0.00269856]
[1646681524409,1.36148511,37810.0,37809.0,0.00269856]
[1646681524608,1.36148511,37810.0,37809.0,9.856e-05]
[1646681524609,1.46548511,37810.0,37809.0,9.856e-05]
[1646681525684,0.02629,37808.0,37807.0,0.57468828]
[1646681525881,0.782665,37808.0,37807.0,0.57468828]
[1646681526082,0.02629,37807.0,37802.0,0.00016437]
[1646681526281,0.493648,37803.0,37802.0,0.00016437]
[1646681526482,1.48495345,37803.0,37802.0,0.00016437]
[1646681526681,0.02629,37802.0,37782.0,0.001]
[1646681526885,0.20379478,37787.0,37782.0,0.001]
[1646681527082,0.19618853,37787.0,37782.0,0.001]
[1646681527282,0.407775,37786.0,37782.0,0.001]
[1646681527482,0.07262,37786.0,37782.0,0.001]
[1646681527686,0.03127895,37786.0,37782.0,0.001]
[1646681527881,0.407775,37785.0,37782.0,0.001]
[1646681528081,0.08127895,37786.0,37782.0,0.001]
[1646681528681,0.003,37785.0,37782.0,0.001]
[1646681529316,0.003,37785.0,37771.0,0.30050506]
[1646681529524,0.15,37782.0,37762.0,0.1579]
[1646681529721,0.15,37782.0,37762.0,0.21511487]
[1646681529722,0.25975557,37771.0,37762.0,0.21511487]
[1646681530019,0.403785,37770.0,37761.0,0.014]
[1646681530219,0.1,37767.0,37761.0,0.014]
[1646681530418,0.17394224,37762.0,37761.0,0.014]
[1646681530719,0.17394224,37762.0,37760.0,0.003]
[1646681530720,0.188268,37761.0,37760.0,0.003]
[1646681530919,1.603753,37759.0,37753.0,0.002]
[1646681531118,0.24792,37757.0,37753.0,0.002]
[1646681531323,0.119305,37759.0,37753.0,0.002]
[1646681531324,0.0486,37756.0,37753.0,0.002]
[1646681531516,0.0486,37756.0,37754.0,0.21263919]
[1646681531716,0.06989,37756.0,37755.0,0.407981]
[1646681531919,0.434271,37756.0,37753.0,0.002]
[1646681532216,0.02629,37756.0,37754.0,0.76918285]
[1646681532415,0.1,37759.0,37754.0,0.76918285]
[1646681532777,0.119253,37764.0,37758.0,0.19537987]
[1646681532778,0.059626,37761.0,37758.0,0.19537987]
[1646681532968,0.059626,37761.0,37759.0,0.407981]
[1646681533167,0.1,37769.0,37754.0,0.29073848]
[1646681533370,0.02629,37767.0,37754.0,0.39073848]
[1646681533573,0.02629,37767.0,37754.0,0.61466124]
[1646681533767,0.059616,37767.0,37755.0,0.407981]
[1646681533966,0.1,37773.0,37764.0,0.18378569]
[1646681534169,0.66985944,37776.0,37765.0,0.407981]
[1646681534170,0.5509,37776.0,37765.0,0.407981]
[1646681534369,0.1,37776.0,37765.0,0.657981]
[1646681534574,0.1,37782.0,37772.0,0.27012579]
[1646681534769,0.07208278,37781.0,37773.0,0.407981]
[1646681534969,0.07208278,37781.0,37767.0,0.8529]
[1646681534970,0.17696773,37779.0,37772.0,0.05]
[1646681535276,0.21004122,37778.0,37773.0,0.05]
[1646681535469,0.434271,37777.0,37767.0,0.05]
[1646681535670,0.02629,37777.0,37767.0,0.05]
[1646681535867,0.434271,37776.0,37764.0,0.48882335]
[1646681536074,0.16283614,37769.0,37764.0,0.18378569]
[1646681536270,0.18912614,37769.0,37753.0,0.002]
[1646681536514,0.02629,37767.0,37753.0,0.002]
[1646681536711,0.02629,37765.0,37762.0,0.00017757]
[1646681536916,0.02629,37765.0,37759.0,0.003]
[1646681536917,0.02629,37763.0,37759.0,0.003]
[1646681537114,0.23990609,37761.0,37759.0,0.003]
[1646681537312,0.434271,37760.0,37759.0,0.003]
[1646681537511,0.21361609,37761.0,37759.0,0.003]
[1646681537713,0.1,37762.0,37759.0,0.003]
[1646681537920,0.1,37763.0,37754.0,0.18165887]
[1646681538115,0.1,37766.0,37756.0,0.8029]
[1646681538314,0.1,37766.0,37758.0,0.83542405]
[1646681538512,0.17263334,37775.0,37759.0,0.456581]
[1646681538513,0.06632103,37775.0,37759.0,0.456581]
[1646681538714,0.18495299,37769.0,37763.0,0.17144235]
[1646681538913,0.16845735,37772.0,37769.0,0.36990598]
[1646681539113,0.1,37770.0,37769.0,0.36990598]
[1646681539313,0.28404,37770.0,37769.0,0.41990598]
[1646681539512,0.507981,37770.0,37769.0,0.41990598]
[1646681539711,0.407981,37770.0,37769.0,0.41990598]
[1646681539913,0.066237,37771.0,37769.0,0.41990598]
[1646681540114,0.1,37776.0,37770.0,0.707981]
[1646681540368,0.01323,37780.0,37772.0,0.28867422]
[1646681540571,0.066219,37781.0,37774.0,0.407981]
[1646681540768,0.066219,37781.0,37778.0,0.18374973]
[1646681540969,0.066219,37781.0,37774.0,0.05]
[1646681541170,0.066219,37781.0,37772.0,0.33867422]
[1646681541470,0.066229,37777.0,37769.0,0.3]
[1646681541669,0.407981,37779.0,37760.0,0.30246913]
[1646681541670,0.02629,37775.0,37760.0,0.30246913]
[1646681541871,0.2171866,37778.0,37760.0,0.21580324]
[1646681541872,0.02629,37771.0,37760.0,0.21580324]
[1646681542068,0.18893824,37768.0,37760.0,0.00246913]
[1646681542271,0.407981,37767.0,37760.0,0.00246913]
[1646681542470,0.58932886,37767.0,37760.0,0.00246913]
[1646681542770,0.18404,37765.0,37760.0,0.00246913]
[1646681542973,0.407981,37766.0,37761.0,0.19661614]
[1646681543173,0.434271,37766.0,37760.0,0.00246913]
[1646681543570,0.066253,37765.0,37760.0,0.00246913]
[1646681543770,0.18404,37764.0,37760.0,0.00246913]
[1646681544016,0.44335318,37764.0,37760.0,0.00246913]
[1646681544213,0.18404,37764.0,37760.0,0.00246913]
[1646681544610,0.066253,37765.0,37760.0,0.00246913]
[1646681544812,0.166253,37765.0,37760.0,0.00246913]
[1646681545013,0.23250328,37769.0,37760.0,0.00246913]
[1646681545014,0.02558463,37768.0,37760.0,0.00246913]
[1646681545412,0.1,37770.0,37760.0,0.00246913]
[1646681545413,0.02160463,37770.0,37762.0,0.407981]
[1646681545615,0.49614,37776.0,37764.0,0.407981]
[1646681545616,0.03483463,37775.0,37764.0,0.407981]
[1646681545819,0.18404,37772.0,37764.0,0.05]
[1646681546014,0.41364473,37773.0,37761.0,0.2263831]
[1646681546214,0.066241,37770.0,37761.0,0.2263831]
[1646681546813,0.39990463,37772.0,37761.0,0.2263831]
[1646681547215,0.39990463,37772.0,37767.0,0.16011778]
[1646681547413,0.39990463,37772.0,37767.0,0.15933648]
[1646681547414,0.09990463,37772.0,37767.0,0.15933648]
[1646681547613,0.09990463,37772.0,37760.0,0.00246913]
[1646681547867,0.16977945,37771.0,37760.0,0.00246913]
[1646681548065,0.434271,37770.0,37760.0,0.00246913]
[1646681548265,0.29566571,37767.0,37760.0,0.00246913]
[1646681548473,0.09990463,37761.0,37760.0,0.00246913]
[1646681548867,0.066253,37762.0,37760.0,0.00246913]
[1646681549266,0.18404,37761.0,37760.0,0.00246913]